Cogmind - Beta 13 @@@ ROGUE MODE // 2024.04.17 @ 08:54:00 Player: Gabe+Kate4EVR Result: Destroyed by VW-665(R) with Subdweller Laser Performance ------------- Evolutions (0) 0 Regions Visited (2) 400 Robots Destroyed (24) 120 Value Destroyed (403) 403 Prototype IDs (5) 100 Alien Tech Used (0) 0 Bonus (0) 0 TOTAL SCORE: 1023 Bonus ------- None Cogmind --------- Core Integrity 0/250 Matter 300/300 Energy 100/100 System Corruption 0% Temperature Cool (6) Movement Core (250) Ox4 Location -10/Subcaves Parts ------- > --- POWER (1) -------- (None) > --- PROPULSION (2) --- (None) > --- UTILITY (2) ------ Medium Storage Unit Tractor Beam > --- WEAPON (2) ------- Assault Rifle Assault Rifle > --- INVENTORY (10) --- Aluminum Leg Wheel Wheel Wheel High-capacity Matter Pod (200) Improved Terrain Scanner Tractor Beam Recalibrator Peak State ------------ > --- POWER ------------ Light Ion Engine > --- PROPULSION ------- Wheel Wheel > --- UTILITY ---------- High-capacity Storage Unit Improved Terrain Scanner > --- WEAPON ----------- Medium Laser Light Cannon > --- INVENTORY -------- Light Ion Engine Aluminum Leg Aluminum Leg Wheel Wheel Wheel Wheel High-capacity Matter Pod Assault Rifle Assault Rifle [Rating: 10] Favorites ----------- Power Light Ion Engine Engine Light Ion Engine Propulsion Wheel Leg Aluminum Leg Wheel Wheel Utility Improved Terrain Scanner Device Improved Terrain Scanner Storage Small Storage Unit Weapon EM Pulse Gun Energy Gun EM Pulse Gun Energy Cannon Subdweller Beam Cannon Ballistic Gun Assault Rifle Ballistic Cannon Light Cannon Build | -11 -10 -10 ------- Run | Yrd Mat Sub Slots Evolved . | . . . Power . | . . . Propulsion . | . . . Utility . | . . . Weapon . | . . . Parts Attached 32 | 13 16 3 Power 3 | 1 2 . Engine 3 | 1 2 . Core . | . . . Reactor . | . . . Propulsion 11 | 6 5 . Treads . | . . . Leg 2 | 2 . . Wheel 9 | 4 5 . Hover . | . . . Flight . | . . . Utility 7 | 2 5 . Device 4 | 1 3 . Storage 3 | 1 2 . Processor . | . . . Hackware . | . . . Protection . | . . . Artifact . | . . . Weapon 11 | 4 4 3 Energy Gun 5 | 3 2 . Energy Cannon 1 | . . 1 Ballistic Gun 4 | 1 1 2 Ballistic Cannon 1 | . 1 . Launcher . | . . . Special Weapon . | . . . Impact Weapon . | . . . Slashing Weapon . | . . . Piercing Weapon . | . . . Special Melee Weapon . | . . . Unidentified Prototypes . | . . . Parts Lost 7 | . 2 5 Power 1 | . . 1 Propulsion 2 | . . 2 Utility . | . . . Weapon 4 | . 2 2 Highest Loss Streak 5 | . 2 5 To Critical Strikes . | . . . Average Slot Usage (%) 97 | . 98 83 Engine 13 | . 13 12 Wheel 27 | . 28 16 Device 13 | . 13 14 Storage 14 | . 14 14 Energy Gun 19 | . 20 10 Ballistic Cannon 7 | . 7 2 Naked Turns . | . . . Heaviest Build 49 | 15 49 24 Greatest Support 26 | 26 20 20 Greatest Overweight (x) 4 | 1 2 4 Average Overweight (x) . | . . 1 Largest Inventory Capacity 20 | 8 20 10 Average Capacity 11 | 7 12 10 Most Carried 14 | 6 14 10 Average Carried 8 | 3 9 9 Final Capacity 10 | 8 10 10 Final Carried 10 | 6 10 8 Class Distribution -------------------- 84% | Mutant 15% | Scavenger-Mutant Dominant Class ---------------- Mutant | -10/Materials Mutant | -10/Subcaves Resources | -11 -10 -10 ----------- Run | Yrd Mat Sub Matter Collected 784 | 332 407 45 Remotely 129 | . 84 45 Salvage Created 841 | 131 666 44 Parts 57 | 6 44 7 Haulers Intercepted 1 | . 1 . Recyclers Shooed 1 | . 1 . Parts Field Recycled . | . . . Retrieved Matter . | . . . Parts Self-Destructed . | . . . Prevented . | . . . Kills | -11 -10 -10 ------- Run | Yrd Mat Sub Combat Hostiles Destroyed 13 | . 12 1 Guns 8 | . 7 1 Cannons 2 | . 2 . AOE 2 | . 2 . Classes Destroyed 10 | 2 7 1 Worker 1 | . 1 . Builder 1 | . 1 . Tunneler 3 | 2 1 . Hauler 1 | . 1 . Recycler 3 | 1 2 . Mechanic 1 | . 1 . Watcher 1 | . 1 . Swarmer 6 | . 6 . Grunt 6 | . 6 . Subdweller 1 | . . 1 Best Kill Streak 4 | 3 4 1 Combat Bots Only 3 | . 3 1 Max Kills in Single Turn 2 | 1 2 1 Gunslinging 1 | . 1 . Exploded 1 | . 1 . Melee . | . . . Uniques/NPCs Destroyed . | . . . Combat | -11 -10 -10 -------- Run | Yrd Mat Sub Hostile Shots Fired 69 | . 55 14 Missed 16 | . 14 2 Damage Taken 825 | . 417 408 Core 253 | . 119 134 Absorbed by Shields . | . . . Regen/Repaired (Parts) 10 | . 10 . Core Remaining (%) 100 | 100 . . Volleys Fired 69 | 10 52 7 Largest 2 | 2 2 2 Hottest 130 | 80 85 130 Shots Fired 132 | 20 102 10 Gun 114 | 20 86 8 Cannon 18 | . 16 2 Launcher . | . . . Special . | . . . Kinetic 26 | 2 18 6 Thermal 22 | . 18 4 Explosive . | . . . Electromagnetic 84 | 18 66 . Robot Hit Streak 8 | 3 7 8 Robot Miss Streak 4 | 2 4 2 Penetration Max . | . . . Secondary Targets 3 | . 2 1 Max Gunslinging Chain 1 | . 1 1 Shots Hit Robots 69 | 10 51 8 Core Hits 29 | 4 22 3 Critical Kills . | . . . Critical Parts Destroyed . | . . . Critical Strikes 1 | . 1 . Blast 1 | . 1 . Melee Attacks . | . . . Impact . | . . . Slashing . | . . . Piercing . | . . . Sneak Attacks . | . . . Combat Hostiles . | . . . Follow-up Attacks . | . . . Damage Inflicted 1144 | 105 923 116 Guns 772 | 105 576 91 Cannons 205 | . 180 25 Explosions 160 | . 160 . Melee . | . . . Ramming 7 | . 7 . Kinetic 291 | 16 196 79 Thermal 323 | . 286 37 Explosive . | . . . Electromagnetic 523 | 89 434 . Impact . | . . . Slashing . | . . . Piercing . | . . . Highest Corruption . | . . . Average Corruption . | . . . Corruption Purged . | . . . Corruption Blocked . | . . . Overload Shots . | . . . Overflow Damage . | . . . Projectiles . | . . . Explosions . | . . . Melee . | . . . Knockbacks 2 | . 2 . Impact . | . . . Kinetic 2 | . 2 . Secondary . | . . . Self-Inflicted Damage 13 | . 13 . Shots 1 | . 1 . Rammed 1 | . 1 . Targets Rammed 1 | . 1 . Kicked . | . . . Crushed . | . . . Highest Temperature 258 | 72 258 9 Average Temperature 49 | 30 53 6 Received Heat Transfer 144 | . 138 6 Effects 2 | . 2 . Interference 2 | . 2 . Siege Activations . | . . . Robots Corrupted 1 | . 1 . Combat Hostiles 1 | . 1 . Parts Fried 2 | . 2 . Impact Corruptions . | . . . Robots Melted . | . . . Combat Hostiles . | . . . Parts Melted . | . . . Heat Transferred 694 | . 620 74 Parts Sabotaged . | . . . Parts Stolen . | . . . Parts Stripped . | . . . Power Chain Reactions 3 | . 3 . Alert | -11 -10 -10 ------- Run | Yrd Mat Sub Peak Influence 373 | 15 373 . Initial 9 | . 9 . Average 166 | 5 198 . Maximum Alert Level 1 | . 1 . Low Security (%) 55 | 100 47 . Level 1 44 | . 52 . Level 2 . | . . . Level 3 . | . . . Level 4 . | . . . Level 5 . | . . . High Security . | . . . Max Security . | . . . Squads Dispatched 2 | . 2 . Investigation 2 | . 2 . Extermination . | . . . Reinforcement . | . . . Assault . | . . . Garrison . | . . . Intercept . | . . . Searches Triggered . | . . . Construction Impeded . | . . . Haulers Reinforced . | . . . Active Scanning Responses . | . . . Cargo Convoy Interrupts . | . . . Stealth | -11 -10 -10 --------- Run | Yrd Mat Sub Distress Signals 1 | . 1 . Communications Jammed . | . . . Distress Signals . | . . . Times Spotted 24 | . 20 4 Peak Tracking Total 4 | . 4 3 Tactical Retreats 2 | . 2 . Traps | -11 -10 -10 ------- Run | Yrd Mat Sub Traps Triggered 1 | . 1 . Indirectly . | . . . Trap Hack Attempts . | . . . Triggered . | . . . Disarmed . | . . . Reprogrammed . | . . . Reused . | . . . Traps Extracted . | . . . Installed . | . . . Triggered 1 | . 1 . Machines | -11 -10 -10 ---------- Run | Yrd Mat Sub Machines Disabled 1 | . 1 . Max in Single Turn 1 | . 1 . Machines Repaired . | . . . Machines Dismantled . | . . . Machines Sabotaged . | . . . Overloaded Fab Kills . | . . . Hacking | -11 -10 -10 --------- Run | Yrd Mat Sub Machines Accessed 6 | . 6 . Terminals 4 | . 4 . Fabricators . | . . . Repair Stations 1 | . 1 . Recycling Units 1 | . 1 . Scanalyzers . | . . . Garrison Access . | . . . Total Hacks 13 | . 13 . Successful 6 | . 6 . Failed 7 | . 7 . Catastrophic . | . . . Database Lockouts . | . . . Manual 7 | . 7 . Terminals 10 | . 10 . Fabricators . | . . . Repair Stations 2 | . 2 . Recycling Units 1 | . 1 . Scanalyzers . | . . . Garrison Access . | . . . Terminal Hacks 3 | . 3 . Prototype ID Bank 3 | . 3 . Fabricator Hacks . | . . . Repair Station Hacks 2 | . 2 . Scan Component 1 | . 1 . Repair 1 | . 1 . Recycling Unit Hacks 1 | . 1 . Report Inventory 1 | . 1 . Scanalyzer . | . . . Garrison Access Hacks . | . . . Unauthorized Hacks . | . . . Terminals . | . . . Fabricators . | . . . Repair Stations . | . . . Recycling Units . | . . . Scanalyzers . | . . . Garrison Access . | . . . Data Cores Recovered . | . . . Used . | . . . Hacking Detections 4 | . 4 . Full Trace Events . | . . . Feedback Events . | . . . Feedback Blocked . | . . . Robot Schematics Acquired . | . . . Robots Built . | . . . Authchips . | . . . Time . | . . . Total Robot Build Rating . | . . . Part Schematics Acquired . | . . . Parts Built . | . . . Authchips . | . . . Time . | . . . Total Part Build Rating . | . . . Parts Repaired 1 | . 1 . Time 38 | . 38 . Parts Recycled . | . . . Recycled Matter . | . . . Retrieved Matter . | . . . Retrieved Components . | . . . Parts Scanalyzed . | . . . Part Schematics Acquired . | . . . Parts Damaged . | . . . Bothacking | -11 -10 -10 ------------ Run | Yrd Mat Sub Used RIF Installer . | . . . Robots Hacked . | . . . Non-combat . | . . . Combat . | . . . Robot Hacks Applied . | . . . Relay Couplers Released . | . . . Fabnet Peak Effective % . | . . . Robots Rewired . | . . . Allies Hacked . | . . . Hacks Repelled . | . . . Allies | -11 -10 -10 -------- Run | Yrd Mat Sub Total Allies . | . . . Largest Group . | . . . Highest-Rated Group . | . . . Highest-Rated Ally . | . . . Total Orders . | . . . Ally Attacks . | . . . Total Damage . | . . . Kills . | . . . Allies Corrupted . | . . . Allies Melted . | . . . Intel | -11 -10 -10 ------- Run | Yrd Mat Sub Robot Analysis Total . | . . . Derelict Logs Recovered . | . . . Drone Launches . | . . . Drone Recoveries . | . . . Exploration | -11 -10 -10 ------------- Run | Yrd Mat Sub Turns Passed 1011 | 156 791 64 Spaces Moved 573 | 95 447 31 Core 4 | 1 . 3 Treads . | . . . Legs 54 | 54 . . Wheels 515 | 40 447 28 Hover . | . . . Flight . | . . . Fastest Speed 50 | 50 80 80 Average Speed 93 | 108 89 109 Slowest Speed 250 | 190 110 250 Overloaded Moves . | . . . Propulsion Burnouts . | . . . Robots Hopped . | . . . Cave-ins Triggered . | . . . Exploration Rate (%) 23 | 5 62 2 Regions Visited 2 Branch Regions 1 Pre-discovered Areas . | . . . Known Exits Taken . | . . . Unknown Exits Taken 2 | 1 1 . Scrap Searched 1 | . . 1 Spaces Dug . | . . . Terrain Destroyed 15 | . 14 1 Melee . | . . . Projectile 1 | . . 1 AOE 14 | . 14 . Terrain Rammed . | . . . Walls Destroyed . | . . . Machines Disabled . | . . . Actions | -11 -10 -10 --------- Run | Yrd Mat Sub Total 913 | 125 736 52 Wait 219 | 1 208 10 Move 571 | 94 446 31 Hop . | . . . Pick Up 6 | 1 5 . Fast Attach 21 | 12 8 1 Attach 5 | 1 2 2 Detach 9 | 6 3 . Swap 6 | . 6 . Drop 6 | . 5 1 Fire 69 | 10 52 7 Melee . | . . . Ram 1 | . 1 . Kick . | . . . Crush . | . . . Escape Stasis . | . . . Rewire . | . . . Trap . | . . . Miscellaneous . | . . . Route ------- -11/Scrapyard -10/Materials (discovered 3 exits: [*Mat] / [*Min] / [*Sub]) -10/Subcaves History --------- Turn | Location | Event 14 | -11/Scrapyard | Discovered new exit (range 16) 157 | -11/Scrapyard | Entered Materials 208 | -10/Materials | Discovered new exit (range 16) 316 | -10/Materials | Build established: Mutant 609 | -10/Materials | Repaired Imp. Terrain Scanner 654 | -10/Materials | Discovered new exit (range 16) 691 | -10/Materials | Discovered new exit (range 10) 948 | -10/Materials | Entered Subcaves 974 | -10/Subcaves | Core integrity fell below 50% 993 | -10/Subcaves | Ambushed by Subdweller buried in earth 998 | -10/Subcaves | Core integrity fell below 20% 1011 | -10/Subcaves | Ambushed by Subdweller buried in earth 1012 | -10/Subcaves | Destroyed by VW-665(R) with Subdweller Laser Last Messages --------------- 00949_ Found Sub. Beam Cannon. 00949_ Found 17 Matter. 00950_ Acquired 7 matter. 00954_ Dropped Lgt. Cannon. 00955_ Acquired Sub. Beam Cannon. 00956_ Acquired 10 matter. 00961_ Subatomizers dissect the Lgt. Cannon. 00973_ Wheel destroyed. 00985_ Subatomizers dissect the Lgt. Cannon. 00991_ Med. Laser destroyed. 00993_ Sub. Beam Cannon destroyed. 00994_ XT-3XM(R): "GOODGOOD!" 00998_ Wheel destroyed. 01000_ Subatomizers dissect the Lgt. Cannon, destroying it. 01000_ Lgt. Ion Engine destroyed. 01003_ XT-3XM(R) destroyed. 01003_ Switching to secondary target: EL-ZYS(R). 01004_ Acquired 28 matter. 01010_ Subatomizers dissect the Sub. Machine Gun. 01012_ VW-665(R): "ARGHSUB!" Map ----- +----------------------------------------------------+ | ?????????????????????????????????????????????????? | | ?????????????????????????????????????????????????? | | ?????????????????????????????????????????????????? | | ?????????????????????????????????????????????????? | | ?????????????????????????????????????????????????? | | ?????????????????????????????????????????????????? | | ?????????????????????????????????????????????????? | | ?????????????????????????????????????????????????? | | ?????????????????????????????????????????????????? | | ?????????????????????????????????????????????????? | | ?????????????????????????????????????????????????? | | ?????????????????????????????????????????????????? | | ?????????????????????????????????????????????????? | | ?????????????????????????????????????????????????? | | ?????????????????????????????????????????????????? | | ?????????????????????????????????????????????????? | | ?????????????????????????????????????????????????? | | ?????????????????????????????????????????????????? | | ?????????????????????????????????????????????????? | | ?????????????????????????????????????????????????? | | ??????????????????????#####??????????????????????? | | ?????????????????????## ####???????????????????? | | ????????????????????## #???????????????????? | | ????????????????????# R #???????????????????? | | ????????????????????# [ #???????????????????? | | ????????????????????# !@= #???????????????????? | | ????????????????????# &*& #???????????????????? | | ????????????????????# #???????????????????? | | ??????????????????### #???????????????????? | | ????????????????###; ##???????????????????? | | ??????????#??####" ; ##????????????????????? | | ?????######""#" ###?????????????????????? | | ???# """ " R #?????????????????????? | | ?? R ; ##?????????????????????? | | ?? ;;; #?????????????????????? | | ?? ""; #;;#### #?????????????????????? | | ??? "#"" ;;####??? ????????????????????? | | ??? ??######???????# #??????????????????? | | ????? ?????????????????? ?????????????????? | | ????????????????????????# ##????????????????? | | ?????????????????????????# #?????????????????? | | ??????????????????????????### #????????????????? | | ?????????????????????????????# #????????????????? | | ?????????????????????????????? #????????????????? | | ?????????????????????????????????????????????????? | | ?????????????????????????????????????????????????? | | ?????????????????????????????????????????????????? | | ?????????????????????????????????????????????????? | | ?????????????????????????????????????????????????? | | ?????????????????????????????????????????????????? | +----------------------------------------------------+ Best States ------------- Heat Dissipation 25 Energy Generation 10 Energy Capacity 250 Matter Stores 300 Matter Capacity 300 Sight Range 16 Terrain Scan Range 16 Terrain Scan Density 10 Evasion (%) 55 Item Schematics ----------------- None Robot Schematics ------------------ None Fabricated ------------ Nothing Alien Tech Used ----------------- None Achievements -------------- None Challenges ------------ None Game ------ Seed SigixNullEngine Manual? 0 Play Time 00:09:18 Cumulative 97.0 hours Start 2024.04.17 @ 08:43:29 End 2024.04.17 @ 08:54:00 Sessions 1 Manual Loads 0 Difficulty Rogue Special Mode None Game No. 195 Rogue 195 Adventurer 0 Explorer 0 Win Type - Total 0 Types 0/0/0/0/0/0/0/0/0 Lore% 31 Gallery% 50 Achievement% 35 Wizard Run 0 Options --------- Layout 0 ASCII 0 Keyboard 1 Movement Numpad Keybinds 0 Fullscreen 1 Font 18/X11 Map View 76x50 Zoom Use 0% Tactical HUD 1 Map Filters NONE Filters NONE Steam 1 RUN: f3b1390c-d240-46aa-a032-f994cc8ce2d0